bitfinex-derivatives/quotes_ETHF0:USTF0_20241004
["timestamp","ask_amount","ask_price","bid_price","bid_amount"]
[1728059372692,0.41051,2436.4,2436.3,0.41051]
[1728059372693,0.4105,2436.4,2436.3,0.41051]
[1728059372890,0.4105,2436.4,2436.0,4.36057]
[1728059373092,0.4105,2436.4,2436.3,0.41052]
[1728059373396,0.41052,2436.3,2436.2,0.41052]
[1728059373991,0.41051,2436.4,2436.3,0.4105]
[1728059374501,0.9735,2436.8,2436.3,14.0548]
[1728059374793,0.41044,2436.8,2436.6,0.41046]
[1728059374989,2.92137,2437.1,2436.7,0.41045]
[1728059375191,0.41043,2436.9,2436.5,7.1578]
[1728059375388,4.2337,2437.3,2436.5,7.1578]
[1728059375389,3.2078,2437.3,2436.8,3.95]
[1728059375598,4.23369,2437.3,2436.8,3.95]
[1728059375790,0.41041,2437.0,2436.9,0.41041]
[1728059376498,0.41041,2437.0,2436.8,3.95]
[1728059376499,0.41039,2437.1,2437.0,0.4104]
[1728059377591,3.2078,2437.3,2436.8,7.1578]
[1728059377786,3.2078,2437.3,2437.0,0.41039]
[1728059377787,0.41038,2437.1,2437.0,0.41039]
[1728059378793,3.2078,2437.3,2437.0,0.41039]
[1728059378989,3.2078,2437.3,2436.8,7.1578]
[1728059379194,3.2078,2437.3,2437.1,0.41037]
[1728059379394,0.41039,2437.1,2436.8,7.1578]
[1728059379593,0.41039,2437.1,2437.0,0.4104]
[1728059379903,0.41044,2436.8,2436.7,0.41044]
[1728059380096,0.41044,2436.8,2436.7,0.41045]
[1728059380406,2.86201,2437.0,2436.6,3.95]
[1728059380705,0.41045,2436.7,2436.6,4.36046]
[1728059380899,0.9337,2436.9,2436.2,8.18411]
[1728059381092,1.02608,2436.8,2436.2,7.1578]
[1728059381299,0.41049,2436.5,2436.4,0.4105]
[1728059381598,1.02621,2436.5,2436.0,0.9385]
[1728059381802,0.41052,2436.3,2436.2,0.41052]
[1728059381997,0.9344,2436.4,2436.0,0.9385]
[1728059382198,0.9344,2436.4,2435.9,3.2078]
[1728059382395,1.02634,2436.2,2435.9,3.2078]
[1728059382601,0.41056,2436.1,2436.0,0.41056]
[1728059382802,2.84061,2436.3,2435.9,3.2078]
[1728059382803,0.41057,2436.0,2435.9,3.61838]
[1728059383104,1.02634,2436.2,2435.6,3.95]
[1728059383105,0.41062,2435.7,2435.6,0.41063]
[1728059383305,0.41065,2435.6,2435.4,0.41066]
[1728059383601,0.41062,2435.7,2435.5,0.41063]
[1728059383902,3.2078,2435.8,2435.5,0.41063]
[1728059384100,0.41063,2435.6,2435.5,0.41063]
[1728059385404,4.1754,2435.8,2435.3,3.2078]
[1728059385604,0.41064,2435.6,2435.3,3.2078]
[1728059385800,0.41066,2435.5,2435.4,0.41066]
[1728059386000,0.41064,2435.6,2435.5,0.41065]
[1728059386400,0.9676,2435.8,2435.5,0.41065]
[1728059386706,0.41063,2435.6,2435.5,0.41064]
[1728059387206,0.41063,2435.7,2435.4,0.41067]
[1728059387406,0.9676,2435.8,2435.5,0.41064]
[1728059387595,0.41063,2435.6,2435.5,0.41064]
[1728059387899,0.41063,2435.6,2434.6,1.1455]
[1728059387900,3.2078,2435.6,2434.9,3.2078]
[1728059388100,0.41068,2435.3,2435.1,0.41071]
[1728059388696,0.41067,2435.4,2435.3,0.41068]
[1728059388900,0.41069,2435.3,2435.1,0.4107]
[1728059389098,1.8425,2435.5,2435.1,3.95]
[1728059389306,0.9676,2435.8,2435.4,3.95]
[1728059389503,0.9676,2435.8,2435.5,0.41064]
[1728059390002,0.41063,2435.6,2435.5,0.41064]
[1728059390304,1.9057,2436.0,2435.9,0.41058]
[1728059390497,0.8996,2436.3,2435.5,8.18442]
[1728059390696,0.8996,2436.3,2435.9,0.41058]
[1728059390697,0.41056,2436.1,2435.9,0.41058]
[1728059391301,0.8996,2436.3,2435.6,0.9441]
[1728059391797,0.41056,2436.1,2435.9,0.41058]
[1728059391995,0.41056,2436.1,2435.6,0.9441]
[1728059392199,0.8996,2436.3,2435.6,0.9441]
[1728059392403,0.41057,2436.0,2435.9,0.41058]
[1728059392704,0.41057,2436.0,2435.8,0.41059]
[1728059393004,0.41059,2435.9,2435.7,0.41061]
[1728059393210,1.02639,2436.1,2435.7,0.41061]
[1728059393507,0.41057,2436.0,2435.8,0.41059]
[1728059393804,0.41057,2436.0,2435.6,0.9441]
[1728059393805,0.8996,2436.3,2435.6,0.9441]
[1728059394013,0.8996,2436.3,2435.5,7.1578]
[1728059394014,3.2078,2436.2,2435.5,3.2078]
[1728059394311,0.41063,2435.6,2435.5,3.2078]
[1728059394504,1.02638,2436.1,2435.5,3.2078]
[1728059394505,1.02642,2436.0,2435.5,3.2078]
[1728059394704,0.41057,2436.0,2435.8,0.41059]
[1728059394901,0.41057,2436.0,2435.6,3.95]
[1728059394902,0.41059,2435.9,2435.7,0.4106]
[1728059395103,0.41059,2435.9,2435.8,0.4106]
[1728059395405,0.4106,2435.8,2435.7,0.41062]
[1728059395606,0.4106,2435.8,2435.6,3.95]
[1728059395607,0.41064,2435.6,2435.4,0.41065]
[1728059395806,0.41064,2435.6,2435.4,0.41066]
[1728059396003,0.41064,2435.6,2435.5,0.41065]
[1728059396204,0.8932,2435.7,2435.5,0.41065]
[1728059396404,1.30382,2435.7,2435.5,0.41065]
[1728059396799,0.41064,2435.6,2435.4,0.41067]
[1728059397001,0.8932,2435.7,2435.5,0.41065]
[1728059397299,0.8932,2435.7,2435.3,3.95]
[1728059397612,0.41063,2435.6,2435.5,0.41065]
[1728059398011,1.30383,2435.7,2435.5,0.41065]
[1728059398513,0.8932,2435.7,2435.5,0.41065]
[1728059399201,0.8932,2435.7,2435.3,3.95]
[1728059399604,1.30383,2435.7,2435.5,0.41065]
[1728059400306,0.41064,2435.6,2435.4,0.41065]
[1728059400507,0.41064,2435.6,2435.4,0.41066]
[1728059400708,0.8932,2435.7,2435.2,3.2078]
[1728059400912,0.41064,2435.6,2435.4,0.41066]
[1728059401212,0.8932,2435.7,2435.2,3.2078]
[1728059401509,2.64511916,2436.0,2435.5,7.1578]
[1728059401711,2.64511916,2436.0,2435.8,0.4106]
[1728059401712,0.9222,2435.9,2435.8,0.4106]
[1728059402108,0.9222,2435.9,2435.5,7.1578]
[1728059402308,0.9222,2435.9,2435.8,0.4106]
[1728059402518,1.37224,2436.2,2435.8,3.2078]
[1728059402816,0.41056,2436.1,2435.9,0.41057]
[1728059403109,0.41056,2436.1,2435.8,3.2078]
[1728059403408,0.41058,2436.0,2435.8,3.2078]
[1728059403617,0.41058,2435.9,2435.8,3.61839]
[1728059403914,0.4106,2435.9,2435.7,0.4106]
[1728059404111,0.4106,2435.9,2435.8,0.4106]
[1728059404508,0.4106,2435.9,2435.5,3.95]
[1728059404509,0.41057,2436.0,2435.9,0.41058]
[1728059404816,1.37224,2436.2,2435.7,1.02655]
[1728059405015,1.37224,2436.2,2436.1,0.41055]
[1728059405203,1.37223,2436.2,2436.1,0.41055]
[1728059405408,2.22322,2436.3,2436.2,0.41053]
[1728059405611,2.22322,2436.3,2436.2,3.61053]
[1728059405815,1.8127,2436.3,2436.2,3.61053]
[1728059406012,1.33272,2436.3,2436.2,3.2]
[1728059406213,1.33272,2436.3,2436.2,3.61053]
[1728059406408,1.33272,2436.3,2436.2,3.2]
[1728059406708,1.33272,2436.3,2436.2,3.61053]
[1728059406709,0.9222,2436.3,2436.2,3.61053]
[1728059406911,1.33272,2436.3,2436.2,3.2]
[1728059407106,0.9222,2436.3,2436.2,3.61053]
[1728059407507,3.54061916,2436.7,2436.2,11.53893]
[1728059407710,1.30595,2436.7,2436.6,0.41046]
[1728059408113,0.8955,2436.7,2436.6,0.41046]
[1728059408314,1.30595,2436.7,2436.6,0.41046]
[1728059408508,0.41046,2436.6,2436.5,3.61048]
[1728059408708,0.8955,2436.7,2436.6,0.41046]
[1728059408709,1.30596,2436.7,2436.6,0.41046]
[1728059408909,3.53421916,2436.9,2436.5,6.4078]
[1728059409109,0.8891,2436.9,2436.6,3.2]
[1728059409314,0.41046,2436.7,2436.6,3.2]
[1728059409513,2.64511916,2437.0,2436.7,4.104]
[1728059409713,2.64511916,2437.7,2436.9,6.4078]
[1728059409925,3.05536916,2437.9,2437.6,0.41029]
[1728059410214,2.64511916,2438.4,2437.8,3.2]
[1728059410406,0.4102,2438.2,2437.8,3.61026]
[1728059410609,2.64511916,2438.4,2437.8,3.2]
[1728059410817,0.41024,2438.0,2437.6,3.6103]
[1728059411023,2.64511916,2437.7,2437.6,3.2]
[1728059411314,0.9442,2437.9,2437.6,3.2]
[1728059411315,2.64511916,2437.8,2437.6,3.2]
[1728059411523,3.05540916,2437.7,2437.4,3.2]
[1728059411705,3.05540916,2437.7,2437.6,3.2]
[1728059411706,2.64511916,2437.7,2437.6,3.2]
[1728059412111,2.67405922,2437.7,2437.6,3.2]
[1728059412508,3.08433922,2437.7,2437.6,3.2]
[1728059412924,10.1024,2437.7,2437.0,3.2078]
[1728059413215,0.41042,2436.9,2436.7,3.61044]
[1728059413409,2.67326491,2436.9,2436.7,3.2]
[1728059413611,3.08367491,2436.9,2436.5,3.2078]
[1728059413821,2.67326491,2436.9,2436.5,3.2078]
[1728059414011,3.08369491,2436.9,2436.8,3.2078]
[1728059414325,2.67326491,2436.9,2436.8,0.41043]
[1728059414511,2.67326491,2437.0,2436.8,0.41043]
[1728059414814,2.67326491,2436.9,2436.8,0.41043]
[1728059415016,2.67326491,2437.0,2436.8,0.41043]
[1728059415207,2.67326491,2437.0,2436.9,0.41041]
[1728059415410,2.873,2437.1,2436.8,3.2078]
[1728059415411,3.64036491,2437.1,2436.8,3.2078]
[1728059415610,2.67326491,2437.1,2437.0,0.4104]
[1728059415819,4.16175454,2437.5,2437.2,0.41036]
[1728059415820,2.67326491,2437.3,2437.2,0.41036]
[1728059416212,2.67326491,2437.3,2437.2,3.2078]
[1728059416410,6.95923454,2437.8,2436.7,7.1478]
[1728059416411,2.67326491,2437.4,2436.7,7.1478]
[1728059416610,3.21551532,2437.7,2436.7,7.1478]
[1728059416611,2.67326491,2437.3,2436.7,7.1478]
[1728059416815,0.41037,2437.2,2436.7,7.1478]
[1728059417016,3.99281491,2437.3,2437.1,0.41037]
[1728059417220,0.41037,2437.2,2436.7,7.1478]
[1728059417421,0.41037,2437.2,2437.0,0.41039]
[1728059417914,0.41037,2437.2,2436.7,7.1478]
[1728059418121,0.9092,2437.3,2436.9,0.4104]
[1728059418416,0.9092,2437.3,2436.7,7.1478]
[1728059418621,0.41037,2437.2,2437.0,0.41039]
[1728059418918,0.9092,2437.3,2436.7,7.1478]
[1728059419319,0.9092,2437.3,2437.2,0.41036]
[1728059419510,3.2078,2437.8,2437.0,7.1478]
[1728059419821,0.41034,2437.4,2437.2,0.41035]
[1728059420024,0.9036,2437.7,2437.0,7.1478]
[1728059420224,0.41034,2437.4,2437.3,0.41035]
[1728059420423,0.41032,2437.5,2437.3,0.41033]
[1728059420723,1.31388,2437.7,2437.6,0.4103]
[1728059420920,0.9036,2437.7,2437.6,0.4103]
[1728059421115,1.02546,2438.3,2437.3,8.17365]
[1728059421315,0.41024,2438.0,2437.8,0.41025]
[1728059421518,2.84407487,2438.2,2437.7,0.41027]
[1728059421519,0.41027,2437.8,2437.7,0.41027]
[1728059421823,1.02554,2438.1,2437.7,0.41027]
[1728059421824,0.41026,2437.9,2437.7,0.41027]
[1728059422135,0.41026,2437.8,2437.7,0.41027]
[1728059422420,0.41026,2437.8,2437.3,8.17365]
[1728059422421,0.4103,2437.6,2437.4,0.41033]
[1728059422718,5.9868,2438.2,2437.3,3.2078]
[1728059422920,0.41029,2437.7,2437.5,0.4103]
[1728059423118,0.06508382,2438.1,2437.3,7.1478]
[1728059423119,1.02554,2438.1,2437.3,7.1478]
[1728059423519,0.41024,2438.0,2437.8,0.41025]
[1728059423724,1.02554,2438.1,2437.8,0.41025]
[1728059424018,2.779,2438.2,2437.8,0.41025]
[1728059424223,0.41025,2437.9,2437.8,0.41025]
[1728059424522,0.41029,2437.7,2437.6,0.41029]
[1728059424827,0.41027,2437.8,2437.6,0.41029]
[1728059425119,2.779,2438.2,2437.3,7.1478]
[1728059425717,1.43576,2438.1,2437.6,0.41028]
[1728059426024,1.43576,2438.1,2437.3,7.1478]
[1728059426025,2.779,2438.2,2437.9,3.94]
[1728059426221,0.41022,2438.1,2438.0,0.41023]
[1728059426517,0.41023,2438.1,2438.0,0.41023]
[1728059426829,0.41021,2438.1,2437.7,3.2078]
[1728059427015,5.44570222,2438.2,2437.7,3.2078]
[1728059427318,0.41023,2438.0,2437.9,0.41024]
[1728059427926,0.41023,2438.0,2437.7,3.2078]
[1728059427927,3.1892,2438.2,2438.1,0.41021]
[1728059428142,2.66670222,2438.5,2438.1,3.94]
[1728059428419,0.41014,2438.6,2438.1,4.96552]
[1728059428627,0.41014,2438.6,2438.5,0.41014]
[1728059429123,4.58936222,2438.8,2438.3,3.2078]
[1728059429124,0.41013,2438.7,2438.3,3.2078]
[1728059429418,0.41013,2438.7,2438.6,0.41011]
[1728059429419,0.41012,2438.7,2438.6,0.41011]
[1728059429631,0.8974,2438.8,2438.3,4.23324]
[1728059429632,1.30751,2438.8,2438.7,0.41011]
[1728059429827,0.8974,2438.8,2438.3,3.2078]
[1728059430127,0.41009,2438.9,2438.8,0.41009]
[1728059430318,0.41006,2439.0,2438.8,0.41009]
[1728059430519,0.41006,2439.0,2438.7,0.4101]
[1728059430724,6.77190222,2439.1,2438.4,4.9654]
[1728059431124,0.8974,2439.1,2438.9,0.41006]
[1728059431323,0.8974,2439.1,2438.6,3.2078]
[1728059431525,0.41006,2439.0,2438.8,0.41008]
[1728059431725,0.41011,2438.8,2438.7,0.4101]
[1728059432120,0.41001,2439.3,2439.2,0.41003]
[1728059432324,0.40997,2439.6,2439.4,0.40998]
[1728059432543,1.98978,2439.7,2439.2,3.2078]
[1728059432721,1.98978,2439.7,2439.0,3.94]
[1728059432920,0.9649,2439.7,2438.9,3.2078]
[1728059433124,0.9649,2439.7,2439.1,0.41004]
[1728059433125,1.02495,2439.5,2439.1,0.41004]
[1728059433330,0.41003,2439.2,2439.0,0.41006]
[1728059433523,1.025,2439.4,2439.0,0.41006]
[1728059433929,1.025,2439.4,2438.8,0.41009]
[1728059433930,0.41008,2438.9,2438.8,0.41009]
[1728059434123,1.02492,2439.6,2438.8,3.94]
[1728059434526,1.9322,2439.7,2438.8,3.94]
[1728059434721,0.41001,2439.3,2439.1,0.41003]
[1728059434930,0.41002,2439.3,2439.1,0.41004]
[1728059435329,1.9322,2439.7,2438.9,4.1485]
[1728059435523,1.9322,2439.7,2438.8,3.94]
[1728059435524,3.2078,2439.5,2438.8,3.94]
[1728059435730,0.41005,2439.1,2438.9,0.41007]
[1728059436027,1.02507,2439.3,2438.8,3.94]
[1728059436324,1.9322,2439.7,2439.1,3.94]
[1728059436720,0.40997,2439.6,2439.1,5.87541]
[1728059436922,0.41001,2439.4,2439.2,0.41002]
[1728059437123,4.23251,2440.1,2439.2,1.02507]
[1728059437326,3.2078,2440.4,2439.7,0.40994]
[1728059437632,1.02467,2440.2,2439.6,3.2078]
[1728059437929,0.40992,2439.9,2439.8,0.40992]
[1728059438126,3.2078,2440.4,2439.6,3.2078]
[1728059438429,7.52735173,2444.2,2440.7,1.02444]
[1728059438430,3.2078,2441.5,2440.7,1.02444]
[1728059438623,3.2078,2441.5,2441.1,3.94]
[1728059438830,3.2078,2441.5,2440.8,8.0581]
[1728059439023,3.2078,2441.5,2440.5,3.2078]
[1728059439224,3.2078,2441.2,2440.5,7.1478]
[1728059439429,3.2078,2441.2,2440.5,3.94]
[1728059439725,0.40978,2440.7,2440.5,3.94]
[1728059439925,3.2078,2441.2,2440.2,3.3188]
[1728059439926,3.2078,2441.2,2440.2,7.1478]
[1728059440227,0.40984,2440.3,2440.2,7.1478]
[1728059440428,4.83857,2441.4,2439.8,0.9353]
[1728059440429,1.02458,2440.4,2439.8,0.9353]
[1728059440634,3.2078,2440.6,2439.6,3.94]
[1728059440829,2.04879,2440.9,2439.6,3.94]
[1728059440830,4.23245,2440.2,2439.6,3.94]
[1728059441138,0.40993,2439.8,2439.6,3.94]
[1728059441327,3.2078,2440.2,2439.6,3.94]
[1728059441528,0.40994,2439.7,2439.6,3.94]
[1728059441836,0.40991,2439.9,2439.6,3.94]
[1728059442132,0.40988,2440.1,2439.6,3.94]
[1728059442438,0.40981,2440.5,2440.3,0.40984]
[1728059442628,3.2078,2440.8,2440.0,3.2078]
[1728059442629,1.0244,2440.8,2440.4,3.94]
[1728059442824,0.40981,2440.5,2440.4,3.94]
[1728059443324,0.40985,2440.3,2440.1,5.32057]
[1728059443628,1.02451,2440.6,2440.1,4.9107]
[1728059443629,0.40986,2440.2,2440.1,4.9107]
[1728059444030,1.02445,2440.7,2440.1,15.0091]
[1728059444232,0.40981,2440.5,2440.3,0.40983]
[1728059444430,4.0906,2440.9,2440.4,3.94]
[1728059444431,1.90718,2440.9,2440.4,3.94]
[1728059444627,0.40981,2440.5,2440.4,3.94]
[1728059445232,1.90718,2440.9,2440.1,4.9107]
[1728059445428,0.40984,2440.3,2440.2,0.40985]
[1728059445630,1.43416,2440.8,2440.2,0.40985]
[1728059445934,0.40982,2440.5,2440.3,0.40984]
[1728059446234,1.02442,2440.8,2440.4,3.94]
[1728059446431,0.40981,2440.5,2440.4,3.94]
[1728059446829,0.40981,2440.5,2440.4,8.0376]
[1728059447026,0.40981,2440.5,2440.4,3.94]
[1728059447432,1.02447,2440.7,2440.1,3.94]
[1728059447632,0.40985,2440.3,2440.2,0.40985]
[1728059448033,3.61764,2440.4,2440.2,0.40985]
[1728059448228,3.2078,2440.4,2440.1,4.34987]
[1728059448431,3.2078,2440.8,2440.2,4.0976]
[1728059448633,0.8828,2440.9,2440.8,0.40976]
[1728059448831,3.2078,2441.1,2440.8,8.0368]
[1728059449036,0.40973,2441.0,2440.9,4.0968]
[1728059450535,3.2078,2441.4,2440.9,10.0968]
[1728059450741,3.2078,2441.4,2441.3,4.34967]
[1728059451032,3.61746,2441.4,2441.3,4.34967]
[1728059451339,3.61746,2441.4,2441.3,8.036]
[1728059452031,0.40966,2441.4,2441.3,8.036]
[1728059452938,0.40966,2441.4,2441.3,3.94]
[1728059455040,4.0584,2441.5,2441.0,3.94]
[1728059455233,1.02415,2441.4,2441.0,4.34971]
[1728059455435,0.40971,2441.1,2441.0,3.94]
[1728059455734,1.02419,2441.3,2441.0,4.34971]
[1728059455933,0.40971,2441.1,2441.0,3.94]
[1728059456442,0.40968,2441.3,2441.1,0.40971]
[1728059456842,0.40969,2441.3,2441.1,4.5057]
[1728059457139,0.40969,2441.3,2441.2,4.50569]
[1728059457332,0.40967,2441.4,2441.2,0.40968]
[1728059457533,0.40966,2441.4,2441.3,3.2]
[1728059457844,4.46805,2441.5,2441.3,7.70567]
[1728059458132,4.46805,2441.5,2441.4,4.096]
[1728059459341,1.26025,2441.5,2441.4,4.096]
[1728059460137,0.40966,2441.4,2441.3,3.60967]
[1728059460542,0.40966,2441.4,2441.3,7.70567]
[1728059460734,0.40966,2441.4,2441.3,10.5038]
[1728059460937,16.5038,2441.4,2440.1,3.2078]
[1728059461139,0.8506,2441.5,2440.3,3.2]
[1728059461140,4.23217,2440.9,2440.3,3.2]
[1728059461441,3.2078,2440.6,2440.3,3.2]
[1728059461840,0.40981,2440.5,2440.3,3.60983]
[1728059462041,0.9118,2440.8,2440.4,4.0976]
[1728059462236,0.9118,2440.8,2440.5,3.2]
[1728059462431,3.61756,2440.8,2440.6,0.40978]
[1728059462640,3.61752,2441.1,2440.8,0.40974]
[1728059462842,3.2078,2441.1,2440.8,0.40974]
[1728059463047,1.02432,2441.0,2440.7,3.2]
[1728059463342,1.02419,2441.3,2440.7,3.2]
[1728059463343,3.61756,2440.8,2440.7,3.2]
[1728059463745,0.40976,2440.8,2440.7,3.2]
[1728059463948,3.61756,2440.8,2440.7,3.2]
[1728059464538,3.2078,2441.1,2440.7,13.2968]
[1728059464742,3.2078,2441.1,2440.9,3.2]
[1728059464743,0.40974,2441.0,2440.9,3.2]
[1728059464946,3.2078,2440.8,2439.8,1e-05]
[1728059465145,3.2078,2440.8,2438.6,1.0251329]
[1728059465146,6.4078,2439.9,2438.9,3.2]
[1728059465337,3.2078,2439.3,2438.6,1.7274]
[1728059465647,0.8371,2439.8,2439.2,3.2]
[1728059465648,3.2078,2439.6,2439.2,3.2]
[1728059465846,3.61777,2439.6,2439.2,3.2]
[1728059466037,3.61777,2439.6,2439.2,7.2992]
[1728059466038,0.40999,2439.5,2439.2,7.2992]
[1728059466242,3.2078,2439.6,2439.2,3.2]
[1728059466449,3.2078,2439.6,2439.3,4.0992]
[1728059466749,3.2078,2439.6,2439.3,3.2]
[1728059466750,0.41,2439.4,2439.3,3.2]
[1728059466938,0.40999,2439.4,2439.3,3.2]
[1728059467146,0.41003,2439.2,2439.1,3.2]
[1728059467541,3.2078,2439.3,2439.1,7.71004]
[1728059467746,3.2078,2439.3,2439.2,4.1]
[1728059467935,3.2078,2439.3,2438.9,3.2078]
[1728059467936,3.2078,2439.3,2438.9,7.1478]
[1728059468140,3.2078,2439.3,2438.7,0.41011]
[1728059468345,3.2078,2439.3,2438.6,5.6674]
[1728059468346,1.02512,2439.1,2438.6,8.0004]
[1728059468542,0.41011,2438.8,2438.6,3.2078]
[1728059468952,0.41009,2438.9,2438.5,0.41014]
[1728059469154,0.4101,2438.8,2438.6,0.41012]
[1728059469342,0.41009,2438.8,2438.4,1.10916]
[1728059469647,0.41012,2438.7,2438.5,0.41014]
[1728059469841,0.41014,2438.6,2438.4,1.10915]
[1728059470241,1.02524,2438.8,2438.4,0.699]
[1728059470745,0.41014,2438.5,2438.4,0.699]
[1728059472842,10.51094,2438.5,2438.4,0.699]
[1728059473251,4.51094,2438.5,2438.4,0.699]
[1728059473450,10.51094,2438.5,2438.4,0.699]
[1728059473653,0.41014,2438.5,2438.4,0.699]
[1728059474149,1.32293,2438.6,2438.4,0.699]
[1728059474451,0.9128,2438.6,2438.4,0.699]
[1728059474662,0.41014,2438.5,2438.4,0.699]
[1728059475059,0.9128,2438.6,2438.4,0.699]
[1728059476654,0.9128,2438.6,2438.4,1.10915]
[1728059476855,3.2078,2438.7,2438.4,0.699]
[1728059477161,3.2078,2439.3,2439.2,0.41003]
[1728059477456,3.2078,2439.6,2438.9,3.2078]
[1728059477658,0.41002,2439.3,2439.0,0.41005]
[1728059477851,0.41002,2439.3,2438.7,0.9193]
[1728059477852,0.41005,2439.1,2438.8,0.41009]
[1728059478050,0.9153,2439.5,2438.7,0.9193]
[1728059478051,0.41009,2438.9,2438.7,0.9193]
[1728059478251,3.2078,2439.3,2438.5,0.699]
[1728059478252,3.2078,2439.0,2438.5,0.699]
[1728059478462,0.41013,2438.6,2438.5,0.699]
[1728059479252,0.4102,2438.2,2437.8,3.2078]
[1728059479557,3.2078,2438.4,2437.8,3.2078]
[1728059480057,3.2078,2438.8,2437.9,1.89192]
[1728059480360,0.41017,2438.4,2437.9,0.8663]
[1728059480562,1.02533,2438.6,2437.9,0.8663]
[1728059480856,3.2078,2438.8,2437.9,0.8663]
[1728059481052,0.41015,2438.5,2438.2,0.41019]
[1728059481453,4.23306,2438.8,2438.2,0.41019]
[1728059481454,1.02529,2438.7,2438.2,0.41019]
[1728059481650,0.41014,2438.6,2438.3,0.41017]
[1728059482057,0.41015,2438.5,2438.3,0.41017]
[1728059482257,4.23306,2438.8,2437.9,0.8663]
[1728059482666,0.41015,2438.5,2438.3,0.41017]
[1728059482960,0.41017,2438.4,2437.9,0.8663]
[1728059483162,0.41017,2438.4,2438.2,0.41019]
[1728059483466,0.41016,2438.5,2438.2,0.41018]
[1728059483764,0.8801,2438.9,2438.3,3.94]
[1728059484064,0.4101,2438.8,2438.6,0.41012]
[1728059484360,0.8801,2438.9,2438.3,4.8574]
[1728059484361,0.8801,2438.9,2438.8,0.41009]
[1728059484754,0.8801,2438.9,2438.7,0.4101]
[1728059485362,1.29018,2438.9,2438.7,0.4101]
[1728059485862,0.8801,2438.9,2438.7,0.4101]
[1728059486263,0.8801,2438.9,2438.3,5.88284]
[1728059486665,0.8801,2438.9,2438.4,1.02541]
[1728059486858,0.8801,2438.9,2438.8,0.41009]
[1728059487463,0.8801,2438.9,2438.7,0.4101]
[1728059487670,0.8801,2438.9,2438.8,0.41009]
[1728059488371,1.31722,2439.3,2439.1,0.41004]
[1728059488568,0.9072,2439.3,2438.7,1.02529]
[1728059488769,0.9072,2439.3,2438.6,4.8232]
[1728059488965,0.41003,2439.2,2438.9,0.41007]
[1728059489264,0.9072,2439.3,2438.6,0.8832]
[1728059489466,3.2078,2439.7,2438.9,3.94]
[1728059489676,4.115,2439.7,2439.1,3.2078]
[1728059489862,4.115,2439.7,2439.5,0.40997]
[1728059490067,4.115,2439.7,2439.1,4.23292]
[1728059490264,0.40997,2439.6,2439.1,3.2078]
[1728059490470,4.115,2439.7,2439.1,3.2078]
[1728059490663,0.9072,2439.7,2439.4,0.40998]
[1728059490867,1.31715,2439.7,2439.4,0.40998]
[1728059491166,0.9072,2439.7,2439.1,3.2078]
[1728059491361,0.9072,2439.7,2439.2,1.02507]
[1728059491562,1.31715,2439.7,2439.4,0.40998]
[1728059491766,1.31715,2439.7,2439.2,0.41003]
[1728059491767,0.9072,2439.7,2439.2,0.41003]
[1728059491978,1.31714,2439.7,2439.4,0.40998]
[1728059492171,0.9072,2439.7,2439.1,3.2078]
[1728059492371,0.9072,2439.7,2439.5,0.40997]
[1728059492779,1.31714,2439.7,2439.4,0.40998]
[1728059493072,0.40996,2439.6,2439.1,3.2078]
[1728059493266,0.40996,2439.6,2439.3,0.41]
[1728059493468,0.9072,2439.7,2439.1,3.2078]
[1728059493663,0.9072,2439.7,2439.1,3.61784]
[1728059493664,0.41,2439.4,2439.1,3.61784]
[1728059493861,4.115,2439.7,2439.1,3.2078]
[1728059494071,4.115,2439.7,2439.4,0.40998]
[1728059494072,4.52495,2439.7,2439.4,0.40998]
[1728059494275,4.52495,2439.7,2439.1,4.23291]
[1728059494276,0.9072,2439.7,2439.1,4.23291]
[1728059494471,0.9072,2439.7,2439.2,1.02507]
[1728059494669,0.9072,2439.7,2439.6,0.40996]
[1728059494964,0.9072,2439.7,2439.3,0.8905]
[1728059495369,0.9072,2439.7,2439.6,0.40996]
[1728059496278,3.2078,2440.0,2439.6,4.0992]
[1728059496472,3.2078,2440.2,2439.6,3.2078]
[1728059496973,3.2078,2440.2,2439.4,0.40999]
[1728059497180,0.40994,2439.7,2439.5,0.40997]
[1728059497477,1.02474,2440.0,2439.3,0.8905]
[1728059497675,1.02474,2440.0,2439.5,0.40998]
[1728059497676,0.40995,2439.7,2439.5,0.40998]
[1728059497876,0.40993,2439.8,2439.6,0.40996]
[1728059498078,1.7797,2439.9,2439.3,0.8905]
[1728059498372,0.40995,2439.7,2439.3,0.8905]
[1728059498583,0.40993,2439.8,2439.5,0.40996]
[1728059498873,0.40993,2439.8,2439.6,0.40996]
[1728059499079,1.7797,2439.9,2439.3,0.8905]
[1728059499273,0.40995,2439.7,2439.5,0.40997]
[1728059499967,0.40994,2439.8,2439.3,0.8905]
[1728059500279,1.7797,2439.9,2439.3,0.8905]
[1728059500476,5.39742,2439.9,2439.7,0.40994]
[1728059500777,5.39742,2439.9,2439.6,0.40995]
[1728059500778,0.40994,2439.8,2439.6,0.40995]
[1728059501171,0.40995,2439.7,2439.5,0.40997]
[1728059501369,4.9875,2439.9,2439.4,0.40999]
[1728059501370,0.40994,2439.8,2439.4,0.40999]
[1728059501573,0.40993,2439.8,2439.3,0.8905]
[1728059501877,0.40993,2439.8,2439.6,0.40995]